bitfinex/quotes_ETHUSD_20250114
["timestamp","ask_amount","ask_price","bid_price","bid_amount"]
[1736815734569,3.88901,3133.8,3133.7,0.04855996]
[1736815734718,3.88901,3133.8,3133.7,0.00679467]
[1736815735062,4.577911,3133.8,3133.7,0.04855996]
[1736815735230,4.577911,3133.8,3133.7,0.00679467]
[1736815735648,5.344911,3133.8,3133.7,0.00679467]
[1736815735862,8.344911,3133.8,3133.7,0.00679467]
[1736815736878,13.749911,3133.8,3133.7,4.67e-06]
[1736815737438,3.97331,3133.5,3133.4,8.87e-06]
[1736815737663,8.602252,3133.5,3133.4,8.87e-06]
[1736815737965,14.242252,3133.5,3133.4,8.87e-06]
[1736815738170,13.992252,3133.5,3133.4,8.87e-06]
[1736815738333,0.75,3131.8,3130.9,0.64173277]
[1736815738536,0.75,3131.4,3130.3,0.1608042]
[1736815738728,3.19398,3130.9,3130.3,0.1608042]
[1736815738941,3.19447,3130.4,3130.3,0.1608042]
[1736815739230,0.55,3130.4,3130.3,0.1608042]
[1736815739447,3.1943,3130.6,3130.3,0.1608042]
[1736815739448,3.19388,3131.0,3130.4,0.8049]
[1736815739642,3.19355,3131.4,3130.4,0.8049]
[1736815739643,0.148,3131.2,3130.4,0.8049]
[1736815739866,0.55,3131.0,3130.4,0.8049]
[1736815740166,0.55,3131.0,3130.3,0.1608042]
[1736815740360,3.19412,3130.8,3130.3,0.1608042]
[1736815740559,0.148,3130.9,3130.3,0.1608042]
[1736815740867,0.55,3130.8,3130.4,3.76744571]
[1736815741069,0.55,3130.8,3130.5,0.8049]
[1736815741368,0.148,3131.2,3130.7,3.76744571]
[1736815741572,3.19357,3131.3,3130.7,3.76744571]
[1736815741770,3.19338,3131.5,3130.7,3.76744571]
[1736815742274,0.148,3131.5,3130.7,3.76744571]
[1736815742433,0.148,3131.5,3131.1,0.8049]
[1736815742636,0.75,3132.2,3131.1,0.8049]
[1736815742832,0.148,3132.1,3131.3,3.76744571]
[1736815743072,3.19285,3132.0,3131.3,3.76744571]
[1736815743577,0.148,3132.1,3131.4,0.03193328]
[1736815743874,3.34076,3132.1,3131.3,3.76744571]
[1736815744473,0.148,3132.1,3131.3,3.76744571]
[1736815745166,0.55,3132.0,3131.3,3.76744571]
[1736815747150,0.55,3132.0,3131.4,0.04133176]
[1736815748185,0.55,3132.0,3131.5,0.8049]
[1736815748778,0.55,3132.0,3131.6,0.04133176]
[1736815749685,3.94227,3132.6,3131.6,7.00193747]
[1736815749871,3.19221,3132.7,3131.9,3.76744571]
[1736815750054,0.55,3132.6,3131.9,3.76744571]
[1736815750250,0.148,3132.8,3131.9,3.76744571]
[1736815750251,0.148,3132.8,3132.0,0.07325894]
[1736815750466,0.148,3132.8,3132.1,0.8049]
[1736815750866,0.148,3132.8,3132.2,0.04133176]
[1736815751068,0.55,3132.7,3132.2,0.04133176]
[1736815751286,0.55,3132.7,3132.1,0.8049]
[1736815751493,0.55,3132.7,3132.2,0.04133176]
[1736815751705,0.55,3132.5,3131.7,0.8049]
[1736815751906,0.75,3132.6,3131.8,0.04133176]
[1736815752104,0.55,3132.7,3131.8,0.04133176]
[1736815752304,3.55,3132.7,3131.8,0.04133176]
[1736815752611,0.55,3132.7,3131.8,0.04133176]
[1736815752755,0.55,3132.3,3131.8,0.04133176]
[1736815753104,0.55,3132.5,3131.7,0.8049]
[1736815753250,0.55,3132.5,3131.8,0.0406006]
[1736815753456,0.924224,3132.5,3131.8,0.0406006]
[1736815753659,3.74236,3132.5,3131.8,0.0406006]
[1736815755509,0.55,3132.5,3131.8,0.0406006]
[1736815756861,0.55,3132.5,3131.9,3.76744571]
[1736815757104,0.0075,3133.3,3132.1,0.7614]
[1736815757105,3.19175,3133.1,3132.1,0.7614]
[1736815757307,3.593385,3133.1,3132.2,3.7993687]
[1736815757507,0.55,3132.9,3132.3,0.04059148]
[1736815757809,4.01614,3133.3,3132.3,0.04059148]
[1736815758012,0.148,3133.2,3132.4,0.7614]
[1736815758161,0.148,3133.2,3132.5,3.76744571]
[1736815758496,0.55,3133.1,3132.5,3.80789116]
[1736815759511,0.55,3133.1,3132.5,3.83981107]
[1736815759657,0.148,3133.4,3132.5,3.83981107]
[1736815759863,3.19153,3133.3,3132.5,3.80789116]
[1736815760106,0.55,3133.2,3132.5,3.80789116]
[1736815760305,0.55,3133.2,3132.6,0.03191968]
[1736815760506,3.19104,3133.8,3132.8,3.76744571]
[1736815760725,3.19104,3133.8,3132.9,0.04044545]
[1736815760726,0.148,3133.6,3132.9,0.04044545]
[1736815760929,1.26995775,3134.0,3133.1,3.76744571]
[1736815760930,3.148,3133.9,3133.1,3.76744571]
[1736815761413,3.148,3133.9,3133.3,3.10290775]
[1736815761809,0.55,3133.8,3133.3,3.10290775]
[1736815762112,0.55,3133.8,3133.4,0.03976115]
[1736815762278,0.8249,3134.3,3133.6,3.10290775]
[1736815762279,4.01548,3134.3,3133.6,3.10290775]
[1736815762813,0.55,3134.2,3133.7,0.0381464]
[1736815763110,0.15,3134.5,3133.9,3.10290775]
[1736815763412,3.34031,3134.5,3134.0,0.03792755]
[1736815763612,0.334031,3134.4,3134.0,0.03792755]
[1736815763813,0.55,3134.3,3133.5,4.54701139]
[1736815764347,0.55,3134.3,3133.6,0.0379002]
[1736815765179,0.15,3134.6,3133.6,0.06980738]
[1736815765180,0.55,3134.5,3133.6,0.06980738]
[1736815765380,0.55,3134.5,3133.7,0.7878]
[1736815765578,0.939026,3134.5,3133.8,0.0319062]
[1736815766015,0.939026,3134.5,3133.9,0.0379002]
[1736815766185,0.15,3134.7,3133.9,0.0379002]
[1736815767700,0.55,3134.6,3133.9,0.0379002]
[1736815770226,0.55,3134.3,3133.7,0.7878]
[1736815770521,0.15,3134.5,3133.7,0.7878]
[1736815770726,0.15,3134.5,3129.5,65.47]
[1736815770727,1.3158,3134.2,3133.8,0.0379002]
[1736815771019,3.74098,3133.9,3133.8,0.0379002]
[1736815771222,0.55,3133.8,3133.1,0.7586]
[1736815771583,0.55,3133.8,3133.2,0.03762669]
[1736815771790,0.55,3133.7,3133.2,0.03762669]
[1736815773123,0.55,3133.6,3133.2,0.03762669]
[1736815773322,0.55,3133.4,3133.2,0.03762669]
[1736815773821,3.450653,3134.0,3132.9,3.75921139]
[1736815773997,3.641483,3134.0,3133.4,0.7586]
[1736815774407,0.55,3133.9,3133.5,0.03790932]
[1736815775207,3.74091,3133.9,3133.5,0.03790932]
[1736815775389,0.55,3133.7,3133.5,0.03790932]
[1736815776291,0.55,3133.8,3133.5,0.03790932]
[1736815777926,3.74121,3133.6,3133.5,0.03790932]
[1736815778096,0.55,3133.5,3133.1,0.7586]
[1736815778296,0.55,3133.5,3133.2,0.03790932]
[1736815779202,0.55,3133.7,3133.2,0.03790932]
[1736815780128,0.55,3133.6,3133.2,0.03790932]
[1736815780332,0.55,3133.7,3133.2,0.03790932]
[1736815780719,3.89085,3134.0,3133.2,0.03790932]
[1736815780934,4.356515,3134.0,3133.2,0.03790932]
[1736815781233,4.206515,3134.0,3133.2,0.03790932]
[1736815781400,4.356515,3134.0,3133.2,0.03790932]
[1736815781934,4.206515,3134.0,3133.2,0.03790932]
[1736815782101,0.55,3133.8,3133.2,0.03790932]
[1736815782304,1.0406635,3133.8,3133.2,0.03790932]
[1736815785019,0.15,3134.0,3133.2,0.03790932]
[1736815785402,0.55,3133.9,3133.2,0.03790932]
[1736815785637,0.15,3134.0,3133.2,0.06982216]
[1736815785828,0.7658,3134.1,3133.3,3.10330476]
[1736815785829,3.95651,3134.1,3133.3,3.10330476]
[1736815786003,4.10651,3134.1,3133.3,3.10330476]
[1736815786202,0.55,3134.0,3133.4,0.03814642]
[1736815787835,0.55,3134.0,3133.5,0.7967]
[1736815788408,0.55,3134.0,3133.6,0.03814642]
[1736815788604,0.55,3133.8,3133.6,0.03814642]
[1736815789612,0.55,3133.7,3133.6,0.03814642]
[1736815790022,0.55,3133.7,3133.2,0.7967]
[1736815790246,0.55,3133.7,3133.6,0.03814642]
[1736815790743,3.74088,3134.0,3133.2,0.7967]
[1736815790949,0.15,3134.1,3133.6,0.03814642]
[1736815791119,3.19062,3134.2,3133.7,0.7967]
[1736815791120,3.34062,3134.2,3133.7,0.7967]
[1736815791320,0.55,3134.1,3133.8,0.03814642]
[1736815791520,0.55,3134.1,3133.7,0.7967]
[1736815791720,0.55,3134.1,3133.8,0.03814642]
[1736815791939,0.55,3134.1,3133.7,0.7967]
[1736815792144,0.55,3134.1,3133.8,0.03814642]
[1736815792438,3.74072,3134.1,3133.8,0.03814642]
[1736815792641,3.74072,3134.1,3133.7,0.7967]
[1736815793133,3.74072,3134.1,3133.8,0.03814642]
[1736815793443,3.74072,3134.1,3133.7,0.7967]
[1736815793644,3.74072,3134.1,3133.9,0.03814642]
[1736815793829,3.74072,3134.1,3133.7,0.7967]
[1736815794028,3.74072,3134.1,3134.0,0.03814642]
[1736815794370,4.129592,3134.1,3134.0,0.03814642]
[1736815794547,0.55,3134.1,3133.7,0.7967]
[1736815794706,0.55,3134.1,3134.0,0.03814642]
[1736815794908,0.55,3134.1,3133.7,0.7967]
[1736815795106,0.55,3134.1,3133.8,0.03814642]
[1736815795313,0.55,3134.1,3133.7,0.7967]
[1736815795511,0.55,3134.1,3133.8,0.03814642]
[1736815795710,0.55,3134.1,3133.7,0.7967]
[1736815795924,0.55,3134.1,3133.8,0.03814642]
[1736815796141,0.55,3134.1,3133.7,0.7967]
[1736815796347,0.55,3134.1,3133.8,0.03814642]
[1736815796849,0.55,3134.1,3133.7,0.7967]
[1736815797014,0.55,3134.1,3133.9,0.03765405]
[1736815797214,0.55,3134.1,3133.7,0.7967]
[1736815797437,0.55,3134.1,3134.0,0.03765405]
[1736815797916,0.55,3134.1,3133.7,0.7967]
[1736815798123,0.55,3134.1,3133.8,0.03765405]
[1736815798329,0.55,3134.1,3133.7,0.7967]
[1736815798530,0.55,3134.1,3133.8,0.03765405]
[1736815798763,0.55,3134.1,3133.7,0.7967]
[1736815798926,0.55,3134.1,3133.9,0.03765405]
[1736815799126,0.55,3134.1,3133.7,0.7967]
[1736815799331,0.55,3134.1,3133.8,0.03765405]
[1736815799530,3.74071,3134.1,3133.7,0.7967]
[1736815799732,4.129581,3134.1,3133.8,0.03765405]
[1736815799967,4.129581,3134.1,3133.7,0.7967]
[1736815800126,4.129581,3134.1,3133.9,0.03765405]
[1736815800333,4.129581,3134.1,3133.7,0.7967]
[1736815800584,4.129581,3134.1,3133.8,0.03765405]
[1736815800975,4.129581,3134.1,3133.7,0.7967]
[1736815801278,0.938871,3134.1,3133.9,0.03765405]
[1736815801449,4.8396,3342.4,3133.9,0.03765405]
[1736815801450,0.8238,3134.7,3133.9,3.10330476]
[1736815801625,0.8238,3134.7,3134.1,0.7878]
[1736815801626,0.148,3134.7,3134.1,0.7878]
[1736815801930,0.148,3134.7,3134.2,0.03736226]
[1736815802126,0.55,3134.7,3134.2,0.03736226]
[1736815802550,3.74013,3134.7,3134.2,0.03736226]
[1736815802754,0.55,3134.5,3134.2,0.03736226]
[1736815803556,7.5868,3134.3,3134.2,0.03736226]
[1736815803755,0.8463,3134.0,3132.8,0.7878]
[1736815803973,0.55,3133.1,3132.8,0.7878]
[1736815804335,0.55,3132.9,3132.5,3.10330476]
[1736815804537,0.55,3132.9,3132.2,3.89110476]
[1736815804835,0.9718,3133.2,3132.5,3.10330476]
[1736815804836,0.55,3133.1,3132.5,3.10330476]
[1736815805043,0.55,3133.1,3132.6,0.7878]
[1736815805355,3.19116,3133.7,3132.8,3.10330476]
[1736815805694,3.33895,3133.9,3133.2,0.7878]
[1736815805840,0.55,3133.8,3133.2,0.7878]
[1736815806292,3.74105,3133.8,3133.2,0.7878]
[1736815806656,3.19086,3134.0,3133.2,0.7878]
[1736815806984,3.33886,3134.0,3133.2,0.7878]
[1736815808042,0.55,3133.9,3133.2,0.7878]
[1736815808307,0.55,3133.9,3133.4,3.10330476]
[1736815808645,0.8238,3134.7,3133.5,0.7878]
[1736815808845,4.0139,3134.7,3134.1,3.10330476]
[1736815809062,3.18999,3134.9,3134.1,3.10330476]
[1736815809243,0.55,3134.8,3134.1,3.10330476]
[1736815809795,3.19008,3134.8,3134.1,3.10330476]
[1736815810010,0.8238,3135.2,3134.4,3.10330476]
[1736815810227,3.18956,3135.3,3134.7,3.10330476]
[1736815810353,3.590896,3135.3,3134.7,3.10330476]
[1736815810961,0.401336,3135.3,3134.7,3.10330476]
[1736815811219,0.9718,3135.5,3134.8,0.03270785]
[1736815811363,3.1895,3135.3,3134.8,0.03270785]
[1736815811561,0.55,3135.2,3134.5,4.57645385]
[1736815811763,3.18916,3135.7,3134.9,0.7878]
[1736815812065,4.01249,3136.1,3135.0,0.03270785]
[1736815812266,3.18901,3135.8,3135.0,0.03270785]
[1736815812691,3.590059,3136.0,3135.1,3.75675481]
[1736815812862,3.590059,3136.0,3135.2,0.7878]
[1736815812863,3.18898,3135.8,3135.2,0.7878]
[1736815813462,3.18898,3135.8,3135.3,0.03270785]
[1736815813797,3.18881,3136.0,3135.2,0.81969263]
[1736815814188,0.55,3135.9,3135.3,0.03270785]
[1736815818122,0.55,3136.3,3135.3,0.03270785]
[1736815818327,0.55,3135.7,3135.3,0.03270785]
[1736815818626,0.55,3135.7,3135.2,0.7878]
[1736815818910,0.55,3135.7,3135.4,0.03140568]
[1736815819080,0.55,3135.7,3135.5,0.03140568]
[1736815819281,3.73918,3135.6,3135.5,0.03140568]
[1736815819475,0.453618,3135.6,3135.1,3.75675481]
[1736815819710,12.57804,3136.8,3135.5,3.75675481]
[1736815819711,3.18857,3136.2,3135.5,3.75675481]
[1736815820578,0.55,3136.1,3135.6,0.03140568]
[1736815820780,3.73878,3136.0,3135.6,0.03140568]
[1736815821104,3.73878,3136.0,3135.3,0.8184]
[1736815821105,0.55,3135.5,3135.3,0.8184]
[1736815821300,0.55,3135.4,3135.3,0.8184]
[1736815821607,0.55,3135.4,3134.7,0.8184]
[1736815821608,0.55,3135.3,3134.7,0.8184]
[1736815822183,0.55,3135.3,3134.8,0.03140568]
[1736815822402,0.55,3135.7,3134.8,0.03140568]
[1736815822602,3.189,3135.8,3135.0,0.8184]
[1736815822808,0.797,3136.3,3135.1,0.03189287]
[1736815823108,0.797,3136.3,3135.1,0.03021275]
[1736815823316,3.18908,3135.7,3135.1,0.03021275]
[1736815823492,0.55,3135.6,3135.1,0.03021275]
[1736815823879,0.318908,3135.7,3135.1,0.03021275]
[1736815824083,0.55,3135.5,3135.1,0.03021275]
[1736815824533,0.55,3135.7,3135.1,0.03021275]
[1736815824932,3.73909,3135.7,3135.1,0.03021275]
[1736815825940,0.797,3135.5,3135.1,0.03021275]
[1736815826105,0.797,3135.5,3134.7,0.8184]
[1736815826106,3.18958,3135.2,3134.7,0.8184]
[1736815826312,0.55,3135.1,3134.7,0.8184]
[1736815826622,0.55,3135.1,3134.8,0.03021275]
[1736815828838,0.55,3135.4,3134.8,0.0621102]
[1736815829043,3.58619871,3135.9,3134.9,4.51565481]
[1736815829448,0.55,3135.5,3135.0,0.03103206]
[1736815830044,0.55,3135.4,3135.0,0.03103206]
[1736815830253,0.55,3135.2,3135.0,0.03103206]
[1736815830479,0.55,3135.1,3135.0,0.03103206]
[1736815831143,0.55,3135.3,3135.0,0.03103206]
[1736815832023,3.18927,3135.6,3135.0,0.03103206]
[1736815832235,3.827084,3135.6,3135.0,0.03103206]
[1736815832436,0.637834,3135.6,3135.0,0.06414384]
[1736815832618,0.39724871,3135.9,3135.0,0.06414384]
[1736815832819,0.55,3135.5,3135.0,0.06414384]
[1736815834053,3.1888,3136.0,3135.4,3.09970383]
[1736815834243,11.57847,3136.3,3135.4,3.85860383]
[1736815834244,3.18891,3135.9,3135.4,3.85860383]
[1736815834613,3.18865,3136.2,3135.5,0.06385253]
[1736815834817,3.1884,3136.4,3135.7,3.09970383]
[1736815835048,3.18821,3136.6,3135.8,0.79078885]
[1736815835249,0.15,3136.8,3136.0,3.09970383]
[1736815835250,3.18802,3136.8,3136.0,3.09970383]
[1736815835454,3.18802,3136.8,3136.4,0.7589]
[1736815835638,0.55,3136.7,3136.4,0.7589]
[1736815835839,0.8071,3137.3,3136.6,3.09970383]
[1736815836053,4.0,3137.8,3136.6,3.09970383]
[1736815836054,3.18764,3137.2,3136.6,3.09970383]
[1736815836355,3.18721,3137.6,3136.7,0.06340655]
[1736815836534,3.18734,3137.5,3137.0,0.7589]
[1736815836727,0.318734,3137.4,3137.0,0.7589]
[1736815836928,0.318734,3137.4,3137.1,0.06300621]
[1736815837119,0.9571,3137.7,3137.1,0.06300621]
[1736815837120,3.33709,3137.7,3137.1,0.06300621]
[1736815837315,3.18696,3137.8,3137.1,0.06300621]
[1736815838157,0.55,3137.7,3137.1,0.06300621]
[1736815838456,3.18696,3137.8,3137.1,0.06300621]
[1736815838633,0.318696,3137.7,3137.1,0.06300621]
[1736815839038,0.55,3137.6,3137.1,0.06300621]
[1736815839434,0.55,3137.5,3137.1,0.06300621]
[1736815842041,0.55,3137.7,3137.1,0.06300621]
[1736815842246,0.55,3137.8,3137.1,0.06300621]
[1736815842449,3.73755,3137.2,3137.1,0.06300621]
[1736815842961,0.55,3137.1,3136.7,0.7589]
[1736815843664,3.18739,3137.4,3136.7,4.50966874]
[1736815843974,3.18738,3137.4,3136.7,4.50966874]
[1736815844171,0.55,3137.3,3136.7,4.50966874]
[1736815844732,0.373738,3137.3,3136.7,4.50966874]
[1736815845039,3.73718,3137.6,3136.7,0.7589]
[1736815845337,0.55,3137.0,3136.7,0.7589]
[1736815845943,0.8071,3137.7,3136.7,4.50966874]
[1736815846143,0.55,3137.6,3136.7,0.7589]
[1736815846344,0.55,3137.1,3136.7,0.7589]
[1736815846554,0.55,3137.6,3136.7,0.7589]
[1736815846754,0.55,3137.6,3136.8,0.0318763]
[1736815846957,3.0,3137.8,3136.8,0.0318763]
[1736815846958,3.73739,3137.4,3136.8,0.0318763]
[1736815847272,3.18722,3137.6,3136.8,3.0318763]
[1736815847463,3.18686,3137.9,3137.4,3.18735]
[1736815847464,0.55,3137.9,3137.4,3.18735]
[1736815847665,6.18646,3138.3,3137.4,3.18735]
[1736815847666,3.18646,3138.3,3137.7,0.7589]
[1736815847870,3.18648,3138.3,3137.9,3.75076874]
[1736815848167,3.18616,3138.6,3137.9,3.75076874]
[1736815848471,3.18627,3138.5,3137.9,3.78263488]
[1736815848671,3.18641,3138.4,3137.9,3.75076874]
[1736815848998,0.55,3138.5,3137.7,0.7589]
[1736815849176,3.18682,3138.0,3137.7,0.7589]
[1736815849476,0.55,3137.9,3137.7,0.7589]
[1736815849833,3.18682,3138.0,3137.7,0.7589]
[1736815849834,0.55,3138.1,3137.7,0.7589]
[1736815850263,3.18594,3138.8,3138.1,0.7589]
[1736815850459,3.99256,3139.3,3138.1,0.79076299]
[1736815850669,3.18584,3138.9,3138.5,3.75076874]
[1736815850841,3.18584,3138.9,3138.2,3.75076874]
[1736815851254,3.504424,3138.9,3138.2,3.75076874]
[1736815851439,0.318584,3138.9,3138.2,3.78262827]
[1736815851798,3.18566,3139.1,3138.2,3.75076874]
[1736815851937,0.55,3138.4,3138.3,0.05898415]
[1736815852144,0.55,3138.4,3138.1,0.7589]
[1736815852487,0.55,3138.4,3138.2,0.05898415]
[1736815852885,0.92363,3138.3,3138.2,0.05898415]
[1736815853036,3.73643,3138.3,3138.2,0.05898415]
[1736815853242,0.55,3138.0,3137.7,0.7589]
[1736815853656,0.55,3138.0,3137.8,0.05890237]
[1736815854585,0.55,3138.4,3137.8,0.05890237]
[1736815854887,3.73684,3137.9,3137.8,0.05890237]
[1736815855580,0.55,3137.9,3137.8,0.05890237]
[1736815855957,0.8071,3138.6,3137.8,0.05890237]
[1736815856169,0.8071,3138.9,3137.9,3.75076874]
[1736815856371,0.8071,3138.9,3138.1,0.7589]
[1736815856682,0.55,3138.6,3138.2,0.05928403]
[1736815856882,3.18605,3138.7,3138.2,0.05928403]
[1736815858051,0.55,3138.6,3138.2,0.05928403]
[1736815858682,0.55,3138.4,3138.2,0.05928403]
[1736815858868,3.73643,3138.3,3138.2,0.05928403]
[1736815859562,0.55,3138.3,3138.2,0.05928403]
[1736815859816,3.1862,3138.6,3138.2,0.05928403]
[1736815860016,3.18584,3138.9,3138.2,0.05928403]
[1736815860183,0.55,3138.4,3138.2,0.05928403]
[1736815861365,0.55,3138.7,3138.2,0.05928403]
[1736815861567,3.18635,3138.4,3138.2,0.05928403]
[1736815862404,3.73643,3138.3,3138.2,0.05928403]
[1736815862715,3.73656,3138.2,3137.8,0.8293]
[1736815864261,3.94996,3138.6,3137.8,0.8293]
[1736815864262,0.55,3138.3,3137.8,0.8293]
[1736815864467,3.18605,3138.7,3138.0,0.8293]
[1736815865102,0.55,3138.8,3138.0,0.8293]
[1736815865299,0.55,3138.4,3138.0,0.8293]
[1736815865617,6.18589,3138.9,3138.0,0.8293]
[1736815865822,6.18589,3138.9,3138.0,0.86116118]
[1736815866033,3.9495,3139.1,3138.2,3.75076874]
[1736815866176,3.18544,3139.3,3138.6,0.8293]
[1736815866375,4.7638,3139.5,3138.6,0.8293]
[1736815866376,0.55,3139.0,3138.6,0.86115753]
[1736815866621,0.55,3139.0,3138.6,0.8293]
[1736815867123,0.55,3139.0,3138.7,0.05779334]
[1736815868074,0.373564,3139.0,3138.7,0.05779334]
[1736815868408,3.73593,3138.8,3138.7,0.05779334]
[1736815868580,0.55,3138.7,3138.3,0.8293]
[1736815868774,3.73609,3138.7,3138.3,0.8293]
[1736815869076,3.73609,3138.7,3138.4,0.05663053]
[1736815869273,3.18616,3138.6,3138.4,0.05663053]
[1736815869737,0.55,3138.7,3138.4,0.05663053]
[1736815870241,3.18555,3139.2,3138.4,0.05663053]
[1736815870532,3.18547,3139.3,3138.6,0.8293]
[1736815870737,0.15,3139.5,3138.7,0.03185721]
[1736815870937,0.15,3139.5,3138.7,0.05675769]
[1736815871124,3.18582,3139.0,3138.7,0.05675769]
[1736815871282,0.55,3139.0,3138.7,0.05675769]
[1736815871488,3.18542,3139.3,3138.7,0.05675769]
[1736815871682,0.72845,3139.3,3138.5,0.8293]
[1736815871887,0.55,3139.2,3138.8,0.05502161]
[1736815872137,3.18564,3139.1,3138.5,0.8293]
[1736815872636,3.18564,3139.1,3138.6,0.05502161]
[1736815872842,0.55,3139.2,3138.6,0.05502161]
[1736815872991,3.18603,3138.7,3138.6,0.05502161]
[1736815873186,3.73603,3138.7,3138.6,0.05502161]
[1736815874984,4.109633,3138.7,3138.6,0.05502161]
[1736815875276,0.55,3138.6,3137.9,0.7534]
[1736815875432,0.55,3138.4,3137.9,0.7534]
[1736815875775,3.18583,3138.9,3137.7,3.75076874]
[1736815875776,3.1858,3139.0,3138.1,0.7534]
[1736815876069,3.1858,3139.0,3138.3,4.50416874]
[1736815876857,0.55,3138.9,3138.3,4.50416874]
[1736815877090,3.18533,3139.4,3138.6,3.75076874]
[1736815877372,3.18513,3139.6,3139.0,0.7534]
[1736815877554,0.9786,3139.9,3139.0,0.7534]
[1736815877873,3.18498,3139.8,3139.1,0.03185287]
[1736815878091,3.18498,3139.8,3139.0,0.7534]
[1736815878418,3.18503,3139.7,3139.0,0.7534]
[1736815878655,0.55,3139.8,3139.0,0.7534]
[1736815878841,0.55,3139.5,3139.0,0.7534]
[1736815879052,3.73526,3139.5,3139.0,0.7534]
[1736815879253,3.18555,3139.2,3139.0,0.7534]
[1736815879432,3.18555,3139.2,3138.3,14.09]
[1736815879433,0.55,3139.1,3138.5,0.8105]
[1736815879771,3.18585,3138.9,3138.5,0.8105]
[1736815880579,0.55,3139.0,3138.5,0.8105]
[1736815880955,3.18517,3139.6,3138.7,3.75076874]
[1736815881173,3.18517,3139.6,3138.2,10.44651]
[1736815881174,1.239925,3139.9,3138.9,0.8105]
[1736815881497,0.55,3139.6,3138.5,0.8105]
[1736815881683,0.55,3139.4,3138.5,0.8105]
[1736815881850,0.55,3139.1,3138.5,0.8105]
[1736815882050,0.55,3139.1,3138.6,0.0525255]
[1736815883189,3.1857,3139.1,3138.6,0.0525255]
[1736815884388,0.55,3138.8,3138.6,0.0525255]
[1736815884806,3.18567,3139.1,3138.6,0.0525255]
[1736815885109,3.18499,3139.8,3138.9,0.8105]
[1736815885264,3.18499,3139.8,3139.0,0.03185152]
[1736815885465,3.18499,3139.8,3139.1,0.8105]
[1736815885683,3.18503,3139.7,3139.1,0.8105]
[1736815886005,3.18503,3139.7,3139.2,0.05231259]
[1736815887295,3.73516,3139.6,3139.2,0.05231259]
[1736815887460,0.55,3139.6,3139.2,0.05231259]
[1736815887665,3.18537,3139.4,3139.2,0.05231259]
[1736815888183,3.18496,3139.8,3139.2,0.05231259]
[1736815888692,0.55,3139.7,3139.2,0.05231259]
[1736815893475,3.33657,3140.2,3139.3,7.80001947]
[1736815893642,3.33657,3140.2,3139.3,7.76816874]
[1736815893844,0.55,3140.1,3139.4,0.05209496]
[1736815894059,0.55,3140.1,3139.5,0.0318486]
[1736815894266,3.18413,3140.6,3139.7,3.18498]
[1736815894465,3.1842,3140.5,3139.8,0.832]
[1736815894774,0.401293,3140.6,3139.8,0.88388642]
[1736815894985,0.8288,3140.8,3139.8,0.88388642]
[1736815896389,0.55,3140.7,3139.8,0.88388642]
[1736815896592,0.55,3140.5,3139.8,0.88388642]
[1736815896893,4.01273,3140.8,3139.8,4.06879642]
[1736815897098,3.18372,3141.0,3140.1,0.832]
[1736815897382,3.18372,3141.0,3140.1,4.0484101]
[1736815897591,0.55,3140.9,3140.2,0.0506897]
[1736815898368,0.55,3141.1,3140.2,0.0506897]
[1736815898577,3.18392,3140.8,3140.2,0.0506897]
[1736815902078,3.18431,3140.4,3140.2,0.0506897]
[1736815904464,0.8288,3140.6,3140.2,0.0506897]
[1736815904644,3.73423,3140.5,3140.2,0.0506897]
[1736815904845,3.18433,3140.4,3140.2,0.0506897]
[1736815906101,0.55,3140.8,3140.2,0.0506897]
[1736815906375,0.55,3140.5,3140.2,0.0506897]
[1736815906582,3.73424,3140.5,3140.2,0.0506897]
[1736815911587,3.18406,3140.7,3140.2,0.0506897]
[1736815911788,0.55,3140.6,3140.2,0.0506897]
[1736815912173,3.7344,3140.3,3140.2,0.0506897]
[1736815912374,11.02672265,3140.3,3140.2,0.0506897]
[1736815912753,3.18523,3139.5,3139.1,0.832]
[1736815912967,0.699,3139.8,3139.1,0.832]
[1736815913269,3.18541,3139.4,3139.2,0.04511435]
[1736815913762,3.18541,3139.4,3138.8,0.832]
[1736815913962,3.73541,3139.4,3138.8,0.832]
[1736815914158,3.18515,3139.6,3138.8,0.832]
[1736815914389,0.149,3139.8,3139.1,0.832]
[1736815914566,0.149,3139.8,3139.1,0.86385039]
[1736815914885,0.55,3139.8,3139.2,0.04511435]
[1736815915084,0.149,3140.1,3139.2,3.135197]
[1736815915263,0.149,3140.1,3139.4,0.832]
[1736815915448,0.55,3140.0,3139.4,0.832]
[1736815915654,3.18502,3139.7,3139.5,0.04586629]
[1736815917292,3.18481,3139.9,3139.5,0.04586629]
[1736815917459,3.33366,3140.1,3139.5,0.04586629]
[1736815918388,0.55,3140.0,3139.5,0.04586629]
[1736815918797,0.149,3140.1,3139.5,0.0777144]
[1736815919008,0.149,3140.1,3139.6,0.8186]
[1736815919299,0.149,3140.1,3139.7,0.04574849]
[1736815920211,3.18453,3140.2,3139.7,0.04574849]
[1736815922162,3.18491,3139.8,3139.7,0.04574849]
[1736815922388,3.73491,3139.8,3139.7,0.04574849]
[1736815922590,0.8058,3140.8,3139.8,0.8186]
[1736815922794,3.18422,3140.5,3139.9,0.03184604]
[1736815922967,3.18433,3140.4,3139.9,0.04538609]
[1736815923168,3.18456,3140.2,3139.9,0.04538609]
[1736815923405,3.1846,3140.2,3139.9,0.04538609]
[1736815923711,3.1846,3140.2,3139.8,0.8186]
[1736815924005,3.18435,3140.4,3139.9,0.04580276]
[1736815924181,3.18415,3140.6,3140.0,0.8186]
[1736815924780,3.18415,3140.6,3140.1,0.04573935]
[1736815925366,0.149,3140.7,3140.1,0.04573935]